fUSD/lending_fUSD_20260506
["ID","MTS","AMOUNT","RATE_DAILY","PERIOD"]
[421728990,1778071847000,-351.70859363,0.000411,120]
[421728994,1778071847000,-450.0,0.000411,120]
[421728989,1778071847000,-342.65762743,0.000411,120]
[421728993,1778071847000,-33588.11,0.000411,7]
[421729003,1778071847000,-903.61,0.00041178,60]
[421728996,1778071847000,-366.0,0.000411,120]
[421728995,1778071847000,-450.0,0.000411,120]
[421728986,1778071847000,-809.0,0.00041096,60]
[421728992,1778071847000,-219.0,0.000411,120]
[421728984,1778071847000,-809.0,0.00041096,60]
[421728985,1778071847000,-809.0,0.00041096,60]
[421728987,1778071847000,-809.0,0.00041096,60]
[421728983,1778071847000,-809.0,0.00041096,60]
[421728982,1778071847000,-809.0,0.00041096,60]
[421729052,1778071848000,-836.76182996,0.000415,30]
[421729049,1778071848000,-630.78690775,0.00041491,2]
[421729047,1778071848000,-1149.39094359,0.00041488,2]
[421729050,1778071848000,-2500.0,0.000415,120]
[421729051,1778071848000,-8902.44406883,0.000415,120]
[421729054,1778071848000,-700.0,0.000415,120]
[421729060,1778071848000,-528.32646944,0.00041547,120]
[421729056,1778071848000,-300.0,0.000415,15]
[421729057,1778071848000,-200.0,0.00041502,120]
[421729058,1778071848000,-250.0,0.00041521,10]
[421729053,1778071848000,-2500.0,0.000415,120]
[421729059,1778071848000,-250.0,0.00041534,110]
[421729048,1778071848000,-155.57,0.0004149,120]
[421729061,1778071848000,-1637.94651917,0.00041547,2]
[421729055,1778071848000,-309.12,0.000415,120]
[421729045,1778071848000,-587.85069359,0.00041483,2]
[421729032,1778071848000,-1094.65804152,0.0004138,2]
[421729044,1778071848000,-626.86897664,0.00041483,2]
[421729062,1778071848000,-690.88,0.00041547,120]
[421729031,1778071848000,-351.70859363,0.00041374,120]
[421729029,1778071848000,-250.0,0.0004137,110]
[421729030,1778071848000,-342.65762743,0.00041374,120]
[421729033,1778071848000,-626.86897664,0.00041383,2]
[421729035,1778071848000,-1149.39094359,0.00041388,2]
[421729034,1778071848000,-587.85069359,0.00041383,2]
[421729036,1778071848000,-630.78690775,0.00041391,2]
[421729042,1778071848000,-6867.04430765,0.00041475,120]
[421729041,1778071848000,-690.88,0.00041447,120]
[421729037,1778071848000,-1187.4,0.000414,120]
[421729038,1778071848000,-157.8,0.000414,30]
[421729043,1778071848000,-1094.65804152,0.0004148,2]
[421729040,1778071848000,-600.38528214,0.00041419,2]
[421729039,1778071848000,-300.0,0.000414,15]
[421729046,1778071848000,-156.48951136,0.00041486,120]
[421729063,1778071848000,-150.0,0.0004156,120]
[421729078,1778071848000,-289.27,0.00041617,120]
[421729065,1778071848000,-1094.65804152,0.0004158,2]
[421729081,1778071848000,-690.88,0.00041647,120]
[421729084,1778071848000,-1142.1,0.00041694,120]
[421729085,1778071848000,-754.82,0.00041694,120]
[421729089,1778071848000,-244.41,0.00041694,120]
[421729092,1778071848000,-195.26,0.00041694,120]
[421729094,1778071848000,-447.0,0.00041694,120]
[421729086,1778071848000,-961.17,0.00041694,120]
[421729095,1778071848000,-333.9,0.00041694,120]
[421729096,1778071848000,-166.96,0.00041694,120]
[421729093,1778071848000,-237.13,0.00041694,120]
[421729090,1778071848000,-1046.98494811,0.00041694,30]
[421729091,1778071848000,-219.81,0.00041694,120]
[421729098,1778071848000,-219.0,0.000417,120]
[421729099,1778071848000,-17494.5513743,0.000417,120]
[421729097,1778071848000,-1340.05,0.00041695,120]
[421729064,1778071848000,-656.73924934,0.00041563,4]
[421729087,1778071848000,-208.29,0.00041694,120]
[421729082,1778071848000,-1094.65804152,0.0004168,2]
[421729068,1778071848000,-1149.39094359,0.00041588,2]
[421729067,1778071848000,-962.33728978,0.00041587,2]
[421729070,1778071848000,-1024.1911806,0.000416,8]
[421729069,1778071848000,-630.78690775,0.00041591,2]
[421729066,1778071848000,-626.86897664,0.00041583,2]
[421729071,1778071848000,-914.15,0.000416,120]
[421729088,1778071848000,-271.41,0.00041694,120]
[421729075,1778071848000,-2740.9911818,0.000416,15]
[421729076,1778071848000,-1581.0,0.00041602,11]
[421729077,1778071848000,-301.68,0.00041617,120]
[421729074,1778071848000,-300.0,0.000416,15]
[421729072,1778071848000,-877.81,0.000416,120]
[421729079,1778071848000,-1581.0,0.00041638,11]
[421729080,1778071848000,-310.0,0.0004164,92]
[421729083,1778071848000,-626.86897664,0.00041683,2]
[421729073,1778071848000,-705.28,0.000416,120]
[421729101,1778071849000,-946.05260061,0.000417,120]
[421729100,1778071849000,-4511.85182732,0.000417,120]
[421729104,1778071849000,-349.9677911,0.00039024,30]
[421729103,1778071849000,-159.0322089,0.00039024,30]
[421729102,1778071849000,-188.86,0.00028781,2]
[421729105,1778071849000,-109.35462732,0.00041096,120]
[421729110,1778071862000,2500.0,0.00029458,120]
[421729109,1778071862000,2500.0,0.00029458,120]
[421729108,1778071862000,2500.0,0.00029458,120]
[421729107,1778071862000,2500.0,0.00024196,120]
[421729106,1778071862000,2500.0,0.00023095,120]
[421729112,1778072404000,266.33,0.00028082,120]
[421729113,1778072405000,266.33,0.00028658,120]
[421729114,1778072405000,266.34,0.00029233,120]
[421729122,1778072543000,28035.953478,0.00029393,120]
[421729127,1778072551000,4276.48933521,8e-05,2]
[421729129,1778072556000,5723.52066479,0.00011,2]
[421729130,1778072556000,302.42801248,0.00011,2]
[421729131,1778072671000,-250.0,0.00014,2]
[421729132,1778072671000,-191.78624056,0.00014,2]
[421729134,1778072767000,14017.976739,0.00022006,120]
[421729137,1778072945000,-1200.0,0.00014899,2]
[421729139,1778072945000,-300.0,0.00014899,2]
[421729138,1778072945000,-300.0,0.00014899,2]
[421729141,1778072945000,-1079.00542997,0.000149,2]
[421729142,1778072945000,-150.0,0.00014998,2]
[421729140,1778072945000,-3027.0368441,0.000149,2]
[421729143,1778072945000,-500.0,0.00014999,2]
[421729145,1778072945000,-500.0,0.00014999,2]
[421729147,1778072945000,-500.0,0.00014999,2]
[421729144,1778072945000,-246.07070479,0.00014999,2]
[421729146,1778072945000,-160.99204198,0.00014999,2]
[421729148,1778072945000,-500.0,0.00014999,2]
[421729150,1778072945000,-500.0,0.00014999,2]
[421729149,1778072945000,-500.0,0.00014999,2]
[421729151,1778072945000,-500.0,0.00014999,2]
[421729152,1778072945000,-500.0,0.00014999,2]
[421729156,1778072945000,-347.48676368,0.00014999,2]
[421729155,1778072945000,-500.0,0.00014999,2]
[421729154,1778072945000,-500.0,0.00014999,2]
[421729168,1778072945000,-500.0,0.00014999,2]
[421729166,1778072945000,-500.0,0.00014999,2]
[421729167,1778072945000,-500.0,0.00014999,2]
[421729165,1778072945000,-500.0,0.00014999,2]
[421729164,1778072945000,-500.0,0.00014999,2]
[421729161,1778072945000,-500.0,0.00014999,2]
[421729162,1778072945000,-500.0,0.00014999,2]
[421729160,1778072945000,-500.0,0.00014999,2]
[421729163,1778072945000,-500.0,0.00014999,2]
[421729157,1778072945000,-500.0,0.00014999,2]
[421729169,1778072945000,-500.0,0.00014999,2]
[421729158,1778072945000,-500.0,0.00014999,2]
[421729159,1778072945000,-500.0,0.00014999,2]
[421729153,1778072945000,-500.0,0.00014999,2]
[421729171,1778072946000,-500.0,0.00014999,2]
[421729172,1778072946000,-500.0,0.00014999,2]
[421729170,1778072946000,-500.0,0.00014999,2]
[421729175,1778072946000,-359.46945703,0.00014999,2]
[421729173,1778072946000,-500.0,0.00014999,2]
[421729176,1778072946000,-307.50425906,0.00014999,2]
[421729174,1778072946000,-500.0,0.00014999,2]
[421729177,1778072972000,-192.49574094,0.00014999,2]
[421729178,1778072972000,-500.0,0.00014999,2]
[421729180,1778072972000,-500.0,0.00014999,2]
[421729181,1778072972000,-373.96271672,0.00014999,2]
[421729179,1778072972000,-500.0,0.00014999,2]
[421729183,1778072972000,-500.0,0.00014999,2]
[421729184,1778072972000,-500.0,0.00014999,2]
[421729185,1778072972000,-248.64254533,0.00014999,2]
[421729186,1778072972000,-150.0,0.00014999,2]
[421729187,1778072972000,-435.46162355,0.00015,2]
[421729182,1778072972000,-612.69442938,0.00014999,2]
[421729200,1778073033000,-1200.0,0.00014999,2]
[421729192,1778073033000,-378.47607588,0.000149,2]
[421729194,1778073033000,-717.79063966,0.000149,2]
[421729197,1778073033000,-278.56,0.000149,2]
[421729195,1778073033000,-856.08682692,0.000149,2]
[421729196,1778073033000,-10384.64879181,0.000149,2]
[421729193,1778073033000,-557.6907513,0.000149,2]
[421729201,1778073033000,-40538.3937774,0.00015,2]
[421729191,1778073033000,-4827.7385,0.000149,2]
[421729198,1778073033000,-7006.5460042,0.00014976,2]
[421729202,1778073033000,-29129.61925556,0.00015,2]
[421729204,1778073033000,-487.38503545,0.00015,2]
[421729207,1778073033000,-3031.8631592,0.00015,2]
[421729208,1778073033000,-636.65095903,0.00015,2]
[421729203,1778073033000,-36959.62125678,0.00015,2]
[421729205,1778073033000,-394.17890492,0.00015,2]
[421729206,1778073033000,-591.86802884,0.00015,2]
[421729199,1778073033000,-219.09451658,0.0001499,2]
[421729209,1778073033000,-400.0,0.00015,2]
[421729214,1778073038000,-26275.76890073,0.00015,2]
[421729217,1778073038000,-436.75223375,0.00015,2]
[421729216,1778073038000,-445471.68103777,0.00015,2]
[421729218,1778073038000,-3284.10974202,0.00015,2]
[421729219,1778073038000,-1738.835448,0.00015,2]
[421729220,1778073038000,-993.71667762,0.00015,2]
[421729215,1778073038000,-380.52932165,0.00015,2]
[421729221,1778073038000,-629.17221816,0.00015,2]
[421729223,1778073038000,-1595.07985084,0.00015,2]
[421729225,1778073038000,-1021.88178341,0.00015,2]
[421729227,1778073038000,-13034.39403384,0.00015,2]
[421729222,1778073038000,-431.69598331,0.00015,2]
[421729226,1778073038000,-1033.56296967,0.00015,2]
[421729224,1778073038000,-999.8506,0.00015,2]
[421729239,1778073040000,-2504.82161894,0.00015,2]
[421729238,1778073040000,-1261.57666536,0.00015,2]
[421729240,1778073040000,-265.96,0.00015,2]
[421729241,1778073040000,-271.60946939,0.00015,2]
[421729262,1778073041000,-52336.78,0.000161,2]
[421729260,1778073041000,-54620.40343421,0.00016082,2]
[421729267,1778073041000,-999.99,0.00016111,2]
[421729261,1778073041000,-473.52157341,0.000161,2]
[421729263,1778073041000,-474.47361691,0.0001611,15]
[421729265,1778073041000,-9999.99,0.00016111,2]
[421729273,1778073041000,-473.52157341,0.000162,2]
[421729266,1778073041000,-1214.25,0.00016111,2]
[421729270,1778073041000,-8154.06,0.00016116,2]
[421729274,1778073041000,-300.0,0.00016308,2]
[421729272,1778073041000,-150.0,0.00016137,2]
[421729271,1778073041000,-255.0,0.00016123,2]
[421729253,1778073041000,-162.32,0.00015969,2]
[421729264,1778073041000,-3027.03684407,0.00016111,2]
[421729254,1778073041000,-300.0,0.00016,2]
[421729243,1778073041000,-48896.04091319,0.00015,2]
[421729258,1778073041000,-1846.70440888,0.00016,2]
[421729255,1778073041000,-473.52157341,0.00016,2]
[421729256,1778073041000,-200.12842738,0.00016,2]
[421729251,1778073041000,-17722.43158554,0.00015505,2]
[421729252,1778073041000,-377.29903517,0.0001596,2]
[421729250,1778073041000,-3027.03684407,0.00015505,2]
[421729247,1778073041000,-2073.9690073,0.00015,2]
[421729249,1778073041000,-427.32868405,0.00015,2]
[421729248,1778073041000,-3129.04007872,0.00015,2]
[421729246,1778073041000,-2311394.61395388,0.00015,2]
[421729244,1778073041000,-333.26194966,0.00015,2]
[421729245,1778073041000,-1426.82577668,0.00015,2]
[421729242,1778073041000,-194351.7682291,0.00015,2]
[421729277,1778073041000,-1680.0,0.00016499,2]
[421729259,1778073041000,-260.96,0.00016068,2]
[421729275,1778073041000,-300.0,0.00016438,2]
[421729282,1778073041000,-375313.88320611,0.00017,2]
[421729278,1778073041000,-3027.03684407,0.00016716,2]
[421729276,1778073041000,-874.6,0.00016438,2]
[421729309,1778073041000,-166.66,0.00018477,2]
[421729306,1778073041000,-2351.0,0.00018149,2]
[421729308,1778073041000,-874.6,0.0001841,2]
[421729305,1778073041000,-1797.9256457,0.000181,2]
[421729304,1778073041000,-500.65642724,0.00018,2]
[421729303,1778073041000,-110617.00103074,0.00018,2]
[421729302,1778073041000,-500.0,0.00017973,2]
[421729301,1778073041000,-500.0,0.00017973,2]
[421729298,1778073041000,-3027.03684407,0.00017927,2]
[421729297,1778073041000,-500.0,0.00017927,2]
[421729299,1778073041000,-17722.43158554,0.00017927,2]
[421729300,1778073041000,-150.0,0.00017951,2]
[421729290,1778073041000,-500.0,0.00017654,2]
[421729292,1778073041000,-267.1856,0.00017751,2]
[421729307,1778073041000,-1024.0,0.00018201,2]
[421729291,1778073041000,-791.29362206,0.000177,2]
[421729296,1778073041000,-270.08,0.000179,2]
[421729269,1778073041000,-17722.43158554,0.00016111,2]
[421729279,1778073041000,-17722.43158554,0.00016716,2]
[421729268,1778073041000,-150.99,0.00016111,2]
[421729281,1778073041000,-501.30095539,0.00016973,2]
[421729288,1778073041000,-500.0,0.00017364,2]
[421729286,1778073041000,-17722.43158554,0.00017321,2]
[421729280,1778073041000,-285.18294388,0.00016905,2]
[421729285,1778073041000,-3027.03684407,0.00017321,2]
[421729284,1778073041000,-200.0,0.00017105,2]
[421729283,1778073041000,-5088.27358156,0.00017005,2]
[421729287,1778073041000,-433.0,0.00017338,2]
[421729289,1778073041000,-162.32,0.00017566,2]
[421729294,1778073041000,-1024.0,0.00017757,2]
[421729347,1778073042000,-286741.23074955,0.0001995,15]
[421729346,1778073042000,-500.0,0.00019949,2]
[421729345,1778073042000,-150.0,0.00019945,4]
[421729343,1778073042000,-4986.65705926,0.000199,3]
[421729341,1778073042000,-3027.03684407,0.00019743,2]
[421729336,1778073042000,-500.0,0.00019178,2]
[421729339,1778073042000,-1024.0,0.00019532,2]
[421729338,1778073042000,-229.62,0.0001945,2]
[421729337,1778073042000,-11082.87,0.00019178,2]
[421729340,1778073042000,-2000.0,0.00019616,2]
[421729344,1778073042000,-272.33326608,0.000199,2]
[421729355,1778073042000,-151.0,0.0001995,2]
[421729349,1778073042000,-332.843692,0.0001995,2]
[421729352,1778073042000,-332.843692,0.0001995,2]
[421729351,1778073042000,-332.843692,0.0001995,2]
[421729350,1778073042000,-332.843692,0.0001995,2]
[421729353,1778073042000,-175.773684,0.0001995,2]
[421729363,1778073042000,-3292.0,0.00019964,2]
[421729354,1778073042000,-175.773684,0.0001995,2]
[421729356,1778073042000,-151.0,0.0001995,2]
[421729357,1778073042000,-175.773684,0.0001995,2]
[421729334,1778073042000,-500.0,0.00019178,2]
[421729358,1778073042000,-151.0,0.0001995,2]
[421729348,1778073042000,-153.968219,0.0001995,2]
[421729335,1778073042000,-500.0,0.00019178,2]
[421729318,1778073042000,-1024.0,0.00019088,2]
[421729333,1778073042000,-500.0,0.00019178,2]
[421729359,1778073042000,-175.773684,0.0001995,2]
[421729310,1778073042000,-1000.0,0.00018521,2]
[421729311,1778073042000,-1117.53083552,0.00018521,2]
[421729320,1778073042000,-162.32,0.00019163,2]
[421729312,1778073042000,-3027.03684407,0.00018532,2]
[421729313,1778073042000,-736.0,0.00018628,2]
[421729316,1778073042000,-180.869,0.00018799,2]
[421729314,1778073042000,-1024.0,0.00018645,2]
[421729315,1778073042000,-1188.504,0.00018799,2]
[421729317,1778073042000,-1500.0,0.00019068,2]
[421729319,1778073042000,-3027.03684407,0.00019137,2]
[421729321,1778073042000,-500.0,0.00019178,2]
[421729323,1778073042000,-500.0,0.00019178,2]
[421729324,1778073042000,-500.0,0.00019178,2]
[421729322,1778073042000,-500.0,0.00019178,2]
[421729328,1778073042000,-500.0,0.00019178,2]
[421729329,1778073042000,-500.0,0.00019178,2]
[421729331,1778073042000,-500.0,0.00019178,2]
[421729327,1778073042000,-500.0,0.00019178,2]
[421729330,1778073042000,-500.0,0.00019178,2]
[421729325,1778073042000,-500.0,0.00019178,2]
[421729332,1778073042000,-500.0,0.00019178,2]
[421729326,1778073042000,-500.0,0.00019178,2]
[421729342,1778073042000,-5238.18215256,0.00019827,2]
[421729361,1778073042000,-151.0,0.0001995,2]
[421729402,1778073042000,-175.773684,0.00020448,2]
[421729362,1778073042000,-151.0,0.0001995,2]
[421729391,1778073042000,-500.0,0.00020447,2]
[421729394,1778073042000,-332.843692,0.00020448,2]
[421729390,1778073042000,-500.0,0.00020447,2]
[421729389,1778073042000,-1027.43622372,0.00020447,5]
[421729393,1778073042000,-151.0,0.00020448,2]
[421729395,1778073042000,-332.843692,0.00020448,2]
[421729397,1778073042000,-332.843692,0.00020448,2]
[421729398,1778073042000,-175.773684,0.00020448,2]
[421729400,1778073042000,-151.0,0.00020448,2]
[421729399,1778073042000,-175.773684,0.00020448,2]
[421729403,1778073042000,-151.0,0.00020448,2]
[421729401,1778073042000,-151.0,0.00020448,2]
[421729405,1778073042000,-151.0,0.00020448,2]
[421729404,1778073042000,-175.773684,0.00020448,2]
[421729406,1778073042000,-151.0,0.00020448,2]
[421729407,1778073042000,-151.0,0.00020448,2]
[421729409,1778073042000,-500.0,0.00020473,2]
[421729410,1778073042000,-500.43861517,0.00020473,2]
[421729413,1778073042000,-782.82467916,0.00020521,2]
[421729408,1778073042000,-521.03068147,0.00020473,2]
[421729412,1778073042000,-1007.37555556,0.00020521,2]
[421729411,1778073042000,-150.0,0.00020473,2]
[421729360,1778073042000,-151.0,0.0001995,2]
[421729387,1778073042000,-874.6,0.00020381,2]
[421729392,1778073042000,-500.0,0.00020447,2]
[421729414,1778073042000,-1000.0,0.00020521,2]
[421729385,1778073042000,-211.93917062,0.00020348,2]
[421729388,1778073042000,-250.0,0.00020382,2]
[421729364,1778073042000,-500.0,0.00019973,2]
[421729366,1778073042000,-500.0,0.00019973,2]
[421729367,1778073042000,-500.0,0.00019973,2]
[421729369,1778073042000,-500.0,0.00019973,2]
[421729372,1778073042000,-240.55590337,0.0002,2]
[421729371,1778073042000,-500.0,0.00019973,2]
[421729368,1778073042000,-500.0,0.00019973,2]
[421729373,1778073042000,-7067.96587589,0.0002,2]
[421729374,1778073042000,-25877.32509415,0.0002,2]
[421729370,1778073042000,-572.63857253,0.00019973,2]
[421729365,1778073042000,-500.0,0.00019973,2]
[421729375,1778073042000,-26729.49640884,0.0002,2]
[421729383,1778073042000,-214.0,0.00020324,2]
[421729381,1778073042000,-2500.0,0.00020164,2]
[421729377,1778073042000,-153.0,0.0002,2]
[421729378,1778073042000,-171.0,0.0002,2]
[421729382,1778073042000,-176.48,0.00020179,2]
[421729384,1778073042000,-10034.1874,0.00020335,2]
[421729379,1778073042000,-164.0,0.0002,2]
[421729380,1778073042000,-1252.0,0.00020022,2]
[421729386,1778073042000,-3027.03684407,0.00020348,2]
[421729396,1778073042000,-332.843692,0.00020448,2]
[421729376,1778073042000,-6222.4790661,0.0002,2]
[421729483,1778073043000,-450.0,0.00022116,2]
[421729459,1778073043000,-2129.0,0.00021537,2]
[421729457,1778073043000,-500.0,0.00021332,2]
[421729453,1778073043000,-313.910179,0.00021332,2]
[421729449,1778073043000,-500.0,0.00021332,2]
[421729454,1778073043000,-500.0,0.00021332,2]
[421729461,1778073043000,-167.88328684,0.00021568,2]
[421729460,1778073043000,-214.60306816,0.00021564,2]
[421729450,1778073043000,-500.0,0.00021332,2]
[421729452,1778073043000,-163.68234244,0.00021332,2]
[421729455,1778073043000,-500.0,0.00021332,2]
[421729465,1778073043000,-985.83123727,0.00021616,2]
[421729456,1778073043000,-500.0,0.00021332,2]
[421729462,1778073043000,-350.0,0.00021568,2]
[421729463,1778073043000,-532.27454454,0.000216,2]
[421729464,1778073043000,-965.30571079,0.00021616,2]
[421729467,1778073043000,-1001.44323485,0.0002188,2]
[421729466,1778073043000,-532.27454454,0.000218,2]
[421729469,1778073043000,-1001.56593355,0.0002188,2]
[421729468,1778073043000,-1000.0,0.0002188,2]
[421729471,1778073043000,-565.62994908,0.0002188,2]
[421729473,1778073043000,-818.00937475,0.0002188,2]
[421729438,1778073043000,-366.59660479,0.00021332,2]
[421729458,1778073043000,-58241.82039864,0.000215,2]
[421729443,1778073043000,-409.67569187,0.00021332,2]
[421729431,1778073043000,-250.0,0.00021021,2]
[421729437,1778073043000,-175.80035316,0.00021256,2]
[421729472,1778073043000,-1000.0,0.0002188,2]
[421729415,1778073043000,-1000.0,0.00020521,2]
[421729416,1778073043000,-270.0,0.00020548,2]
[421729418,1778073043000,-150.0,0.00020708,2]
[421729417,1778073043000,-22926.97907708,0.000207,2]
[421729421,1778073043000,-162.32,0.0002076,2]
[421729419,1778073043000,-500.0,0.00020708,2]
[421729420,1778073043000,-1869.28734531,0.00020712,2]
[421729423,1778073043000,-397.0,0.00020994,2]
[421729422,1778073043000,-408.0,0.00020994,2]
[421729424,1778073043000,-500.0,0.00020995,2]
[421729432,1778073043000,-1500.0,0.00021068,2]
[421729430,1778073043000,-1000.0,0.00021021,2]
[421729428,1778073043000,-153.0,0.00021,2]
[421729429,1778073043000,-164.0,0.00021,2]
[421729426,1778073043000,-1800.0,0.00021,2]
[421729434,1778073043000,-185.12673,0.0002107,7]
[421729448,1778073043000,-500.0,0.00021332,2]
[421729436,1778073043000,-375.481519,0.0002107,2]
[421729435,1778073043000,-186.478838,0.0002107,7]
[421729433,1778073043000,-1500.0,0.00021068,2]
[421729440,1778073043000,-517.65628542,0.00021332,2]
[421729446,1778073043000,-492.59344334,0.00021332,2]
[421729442,1778073043000,-500.0,0.00021332,2]
[421729484,1778073043000,-532.27454454,0.000222,2]
[421729470,1778073043000,-1000.0,0.0002188,2]
[421729475,1778073043000,-5000.0,0.00021918,2]
[421729505,1778073043000,-3620.0,0.00023142,2]
[421729506,1778073043000,-650.0,0.00023212,2]
[421729507,1778073043000,-1000.0,0.00023288,15]
[421729504,1778073043000,-164.0,0.00023,2]
[421729510,1778073043000,-2500.0,0.00023524,2]
[421729509,1778073043000,-2500.0,0.00023524,2]
[421729518,1778073043000,-3000.0,0.00024072,2]
[421729517,1778073043000,-211.9391706,0.00024022,2]
[421729519,1778073043000,-2008.23716968,0.00024072,2]
[421729514,1778073043000,-1035.52786894,0.00024,2]
[421729516,1778073043000,-164.0,0.00024,2]
[421729508,1778073043000,-401.18521548,0.000235,2]
[421729511,1778073043000,-750.0,0.0002376,2]
[421729512,1778073043000,-25142.47854187,0.000238,2]
[421729520,1778073043000,-6453.0,0.00024156,2]
[421729521,1778073043000,-5697.22,0.00024174,2]
[421729523,1778073043000,-315.96198961,0.00024308,2]
[421729525,1778073043000,-2000.0,0.00024412,2]
[421729522,1778073043000,-1314.185319,0.0002423,14]
[421729528,1778073043000,-151.0,0.00024658,2]
[421729524,1778073043000,-874.6,0.00024324,2]
[421729529,1778073043000,-151.0,0.00024658,2]
[421729526,1778073043000,-3385.17092439,0.0002462,2]
[421729474,1778073043000,-1000.0,0.0002188,2]
[421729513,1778073043000,-162.32,0.00023954,2]
[421729503,1778073043000,-380.0,0.00023,2]
[421729515,1778073043000,-3600.0,0.00024,2]
[421729500,1778073043000,-2004.32156241,0.00022976,2]
[421729480,1778073043000,-532.27454454,0.00022,2]
[421729501,1778073043000,-2000.0,0.00022976,2]
[421729479,1778073043000,-1982.0,0.00022,3]
[421729482,1778073043000,-164.0,0.00022,2]
[421729478,1778073043000,-4609.0,0.0002196,2]
[421729527,1778073043000,-1000.0,0.00024658,25]
[421729476,1778073043000,-1000.0,0.00021918,5]
[421729477,1778073043000,-1000.0,0.00021918,5]
[421729495,1778073043000,-550.0,0.00022664,2]
[421729494,1778073043000,-35948.84403507,0.000225,2]
[421729496,1778073043000,-150.0,0.00022923,2]
[421729497,1778073043000,-150.0,0.00022923,2]
[421729481,1778073043000,-167.0,0.00022,2]
[421729489,1778073043000,-1500.0,0.00022428,2]
[421729502,1778073043000,-2000.0,0.00022976,2]
[421729486,1778073043000,-874.6,0.00022353,2]
[421729499,1778073043000,-199.0,0.00022923,2]
[421729491,1778073043000,-1500.0,0.00022428,2]
[421729492,1778073043000,-1500.0,0.00022428,2]
[421729488,1778073043000,-532.27454454,0.000224,2]
[421729498,1778073043000,-150.0,0.00022923,2]
[421729490,1778073043000,-501.54617284,0.00022428,2]
[421729485,1778073043000,-162.0,0.00022218,2]
[421729487,1778073043000,-162.32,0.00022357,2]
[421729493,1778073043000,-2900.0,0.000225,15]
[421729570,1778073044000,-252.12,0.000274,7]
[421729555,1778073044000,-151.0,0.00027397,2]
[421729563,1778073044000,-183.504186,0.00027397,2]
[421729562,1778073044000,-183.504186,0.00027397,2]
[421729566,1778073044000,-5963.27,0.00027397,10]
[421729564,1778073044000,-183.504186,0.00027397,2]
[421729565,1778073044000,-183.504186,0.00027397,2]
[421729567,1778073044000,-4969.4,0.00027397,10]
[421729554,1778073044000,-300.0,0.00027397,2]
[421729568,1778073044000,-467.95,0.00027397,45]
[421729572,1778073044000,-214.60306816,0.000274,7]
[421729587,1778073044000,-874.6,0.00028267,2]
[421729571,1778073044000,-26240.71,0.000274,7]
[421729573,1778073044000,-296.59,0.0002742,14]
[421729574,1778073044000,-2000.0,0.00027464,2]
[421729575,1778073044000,-211.9391706,0.00027696,2]
[421729576,1778073044000,-4562.22766568,0.00028,60]
[421729577,1778073044000,-160.0,0.00028,2]
[421729578,1778073044000,-643.0,0.00028,2]
[421729581,1778073044000,-180.53,0.00028,2]
[421729592,1778073044000,-200.0,0.00028767,60]
[421729583,1778073044000,-180.53,0.00028,2]
[421729552,1778073044000,-162.52,0.00027397,30]
[421729569,1778073044000,-3000.0,0.00027399,2]
[421729551,1778073044000,-155.34,0.00027397,30]
[421729534,1778073044000,-176.64447725,0.00025,2]
[421729556,1778073044000,-151.0,0.00027397,2]
[421729600,1778073044000,-341.060312,0.00028767,60]
[421729533,1778073044000,-3318.0,0.00024882,2]